fUST/lending_fUST_20260612
["ID","MTS","AMOUNT","RATE_DAILY","PERIOD"]
[424841679,1781196644000,-558.9795,0.00036438,18]
[424841682,1781196644000,-500.0,0.00036438,18]
[424841684,1781196644000,-500.0,0.00036438,18]
[424841681,1781196644000,-500.0,0.00036438,18]
[424841673,1781196644000,-297.2580428,0.00036164,18]
[424841680,1781196644000,-493.22033286,0.00036438,18]
[424841686,1781196644000,-500.0,0.00036438,18]
[424841674,1781196644000,-846.03,0.00036164,18]
[424841688,1781196644000,-1326.85,0.00036438,18]
[424841689,1781196644000,-500.0,0.00036438,18]
[424841696,1781196644000,-2043.54,0.00036438,2]
[424841685,1781196644000,-500.0,0.00036438,18]
[424841691,1781196644000,-500.0,0.00036438,18]
[424841690,1781196644000,-172.72546172,0.00036438,18]
[424841692,1781196644000,-1009.65,0.00036438,18]
[424841694,1781196644000,-500.0,0.00036438,18]
[424841695,1781196644000,-455.45315621,0.00036438,18]
[424841693,1781196644000,-500.0,0.00036438,18]
[424841697,1781196644000,-500.0,0.00036438,18]
[424841698,1781196644000,-500.0,0.00036438,18]
[424841645,1781196644000,-3481.0,0.00036164,18]
[424841687,1781196644000,-500.0,0.00036438,18]
[424841668,1781196644000,-500.0,0.00036164,18]
[424841683,1781196644000,-725.25,0.00036438,18]
[424841670,1781196644000,-500.0,0.00036164,18]
[424841639,1781196644000,-2069.61,0.00036164,18]
[424841667,1781196644000,-500.0,0.00036164,2]
[424841641,1781196644000,-500.0,0.00036164,18]
[424841638,1781196644000,-522.33695433,0.00036164,18]
[424841642,1781196644000,-500.0,0.00036164,18]
[424841646,1781196644000,-2684.78,0.00036164,18]
[424841652,1781196644000,-500.0,0.00036164,18]
[424841648,1781196644000,-1587.13,0.00036164,18]
[424841650,1781196644000,-1029.31,0.00036164,18]
[424841653,1781196644000,-500.0,0.00036164,18]
[424841649,1781196644000,-1830.86,0.00036164,18]
[424841647,1781196644000,-524.08,0.00036164,18]
[424841659,1781196644000,-500.0,0.00036164,18]
[424841655,1781196644000,-500.0,0.00036164,18]
[424841651,1781196644000,-500.0,0.00036164,18]
[424841669,1781196644000,-500.0,0.00036164,18]
[424841666,1781196644000,-688.11,0.00036164,18]
[424841654,1781196644000,-500.0,0.00036164,18]
[424841665,1781196644000,-500.0,0.00036164,18]
[424841664,1781196644000,-500.0,0.00036164,18]
[424841663,1781196644000,-1069.77,0.00036164,11]
[424841660,1781196644000,-500.0,0.00036164,18]
[424841662,1781196644000,-566.44,0.00036164,18]
[424841661,1781196644000,-552.24257119,0.00036164,18]
[424841657,1781196644000,-927.63,0.00036164,18]
[424841656,1781196644000,-589.7004163,0.00036164,18]
[424841658,1781196644000,-500.0,0.00036164,2]
[424841671,1781196644000,-500.0,0.00036164,18]
[424841738,1781196645000,-504.78530868,0.00036438,18]
[424841735,1781196645000,-500.0,0.00036438,18]
[424841739,1781196645000,-500.0,0.00036438,18]
[424841748,1781196645000,-500.0,0.00036438,18]
[424841747,1781196645000,-500.0,0.00036438,18]
[424841729,1781196645000,-501.65923145,0.00036438,18]
[424841736,1781196645000,-508.08827338,0.00036438,18]
[424841728,1781196645000,-500.0,0.00036438,18]
[424841733,1781196645000,-640.99,0.00036438,18]
[424841723,1781196645000,-927.96459709,0.00036438,10]
[424841737,1781196645000,-500.0,0.00036438,18]
[424841746,1781196645000,-500.0,0.00036438,18]
[424841743,1781196645000,-558.16142282,0.00036438,18]
[424841750,1781196645000,-1315.8,0.00036438,18]
[424841741,1781196645000,-500.0,0.00036438,18]
[424841740,1781196645000,-500.0,0.00036438,18]
[424841744,1781196645000,-535.87,0.00036438,18]
[424841745,1781196645000,-1615.89,0.00036438,18]
[424841749,1781196645000,-500.0,0.00036438,18]
[424841751,1781196645000,-500.0,0.00036438,18]
[424841755,1781196645000,-765.28,0.00036438,18]
[424841761,1781196645000,-500.0,0.00036438,18]
[424841754,1781196645000,-689.14,0.00036438,18]
[424841757,1781196645000,-500.0,0.00036438,18]
[424841753,1781196645000,-552.72345859,0.00036438,18]
[424841756,1781196645000,-969.19,0.00036438,18]
[424841727,1781196645000,-500.0,0.00036438,18]
[424841742,1781196645000,-500.0,0.00036438,18]
[424841734,1781196645000,-693.44,0.00036438,18]
[424841699,1781196645000,-500.0,0.00036438,18]
[424841730,1781196645000,-500.0,0.00036438,18]
[424841752,1781196645000,-744.07,0.00036438,18]
[424841700,1781196645000,-495.02169433,0.00036438,18]
[424841708,1781196645000,-500.0,0.00036438,18]
[424841703,1781196645000,-500.0,0.00036438,18]
[424841702,1781196645000,-545.30510163,0.00036438,18]
[424841701,1781196645000,-662.41,0.00036438,18]
[424841704,1781196645000,-500.0,0.00036438,18]
[424841706,1781196645000,-500.0,0.00036438,18]
[424841705,1781196645000,-500.0,0.00036438,18]
[424841707,1781196645000,-571.03,0.00036438,18]
[424841721,1781196645000,-500.0,0.00036438,18]
[424841710,1781196645000,-500.0,0.00036438,18]
[424841720,1781196645000,-502.36322246,0.00036438,18]
[424841731,1781196645000,-500.0,0.00036438,18]
[424841709,1781196645000,-564.99,0.00036438,18]
[424841713,1781196645000,-788.76,0.00036438,18]
[424841712,1781196645000,-500.0,0.00036438,18]
[424841719,1781196645000,-500.0,0.00036438,18]
[424841715,1781196645000,-1385.18,0.00036438,18]
[424841711,1781196645000,-500.0,0.00036438,18]
[424841716,1781196645000,-500.0,0.00036438,18]
[424841717,1781196645000,-500.0,0.00036438,18]
[424841718,1781196645000,-1408.41,0.00036438,18]
[424841722,1781196645000,-500.0,0.00036438,18]
[424841725,1781196645000,-551.22,0.00036438,18]
[424841724,1781196645000,-500.0,0.00036438,18]
[424841726,1781196645000,-2435.79,0.00036438,18]
[424841732,1781196645000,-500.0,0.00036438,18]
[424841714,1781196645000,-500.0,0.00036438,18]
[424841760,1781196645000,-500.0,0.00036438,18]
[424841759,1781196645000,-151.0,0.00036438,7]
[424841818,1781196645000,-1029.31,0.00036438,18]
[424841795,1781196645000,-500.0,0.00036438,18]
[424841793,1781196645000,-440.21778226,0.00036438,18]
[424841796,1781196645000,-500.0,0.00036438,18]
[424841797,1781196645000,-500.0,0.00036438,18]
[424841798,1781196645000,-500.0,0.00036438,18]
[424841799,1781196645000,-26270.38,0.00036438,18]
[424841808,1781196645000,-1904.62,0.00036438,18]
[424841809,1781196645000,-500.0,0.00036438,18]
[424841810,1781196645000,-551.1799279,0.00036438,18]
[424841804,1781196645000,-1501.96,0.00036438,18]
[424841805,1781196645000,-503.19325341,0.00036438,18]
[424841802,1781196645000,-500.0,0.00036438,18]
[424841807,1781196645000,-2069.61,0.00036438,18]
[424841794,1781196645000,-500.0,0.00036438,18]
[424841800,1781196645000,-1365.01,0.00036438,18]
[424841803,1781196645000,-500.0,0.00036438,18]
[424841812,1781196645000,-500.0,0.00036438,18]
[424841822,1781196645000,-500.0,0.00036438,18]
[424841811,1781196645000,-689.91,0.00036438,18]
[424841815,1781196645000,-1587.13,0.00036438,18]
[424841814,1781196645000,-2684.78,0.00036438,18]
[424841820,1781196645000,-500.0,0.00036438,18]
[424841816,1781196645000,-524.08,0.00036438,18]
[424841819,1781196645000,-500.0,0.00036438,18]
[424841817,1781196645000,-1830.86,0.00036438,18]
[424841813,1781196645000,-3481.0,0.00036438,18]
[424841821,1781196645000,-500.0,0.00036438,18]
[424841758,1781196645000,-1638.2,0.00036438,18]
[424841801,1781196645000,-500.0,0.00036438,18]
[424841790,1781196645000,-500.0,0.00036438,18]
[424841806,1781196645000,-500.0,0.00036438,18]
[424841791,1781196645000,-500.0,0.00036438,18]
[424841763,1781196645000,-500.0,0.00036438,18]
[424841775,1781196645000,-500.0,0.00036438,18]
[424841792,1781196645000,-1041.52,0.00036438,18]
[424841765,1781196645000,-500.0,0.00036438,18]
[424841774,1781196645000,-2812.77,0.00036438,18]
[424841762,1781196645000,-500.0,0.00036438,18]
[424841773,1781196645000,-500.0,0.00036438,18]
[424841764,1781196645000,-730.94,0.00036438,18]
[424841772,1781196645000,-500.0,0.00036438,18]
[424841767,1781196645000,-500.0,0.00036438,18]
[424841770,1781196645000,-500.0,0.00036438,18]
[424841769,1781196645000,-500.0,0.00036438,18]
[424841771,1781196645000,-1429.13,0.00036438,18]
[424841768,1781196645000,-1896.26,0.00036438,18]
[424841766,1781196645000,-1484.57,0.00036438,18]
[424841786,1781196645000,-500.0,0.00036438,18]
[424841788,1781196645000,-2560.91,0.00036438,18]
[424841783,1781196645000,-1010.47,0.00036438,18]
[424841780,1781196645000,-500.0,0.00036438,18]
[424841787,1781196645000,-500.0,0.00036438,18]
[424841784,1781196645000,-500.0,0.00036438,18]
[424841781,1781196645000,-500.0,0.00036438,18]
[424841776,1781196645000,-1284.08,0.00036438,18]
[424841789,1781196645000,-609.4,0.00036438,6]
[424841778,1781196645000,-500.0,0.00036438,18]
[424841782,1781196645000,-500.0,0.00036438,18]
[424841779,1781196645000,-956.09,0.00036438,18]
[424841785,1781196645000,-818.52,0.00036438,18]
[424841777,1781196645000,-643.26,0.00036438,18]
[424841882,1781196646000,-788.76,0.00036712,18]
[424841871,1781196646000,-662.41,0.00036712,18]
[424841865,1781196646000,-500.0,0.00036712,18]
[424841868,1781196646000,-221.34,0.00036712,18]
[424841867,1781196646000,-2043.54,0.00036712,2]
[424841862,1781196646000,-500.0,0.00036712,18]
[424841869,1781196646000,-500.0,0.00036712,18]
[424841855,1781196646000,-500.0,0.00036712,18]
[424841859,1781196646000,-588.02643907,0.00036712,18]
[424841860,1781196646000,-1326.85,0.00036712,18]
[424841881,1781196646000,-500.0,0.00036712,18]
[424841866,1781196646000,-500.0,0.00036712,18]
[424841870,1781196646000,-500.0,0.00036712,18]
[424841884,1781196646000,-1385.18,0.00036712,18]
[424841873,1781196646000,-500.0,0.00036712,18]
[424841883,1781196646000,-500.0,0.00036712,18]
[424841874,1781196646000,-500.0,0.00036712,18]
[424841875,1781196646000,-500.0,0.00036712,18]
[424841880,1781196646000,-500.0,0.00036712,18]
[424841876,1781196646000,-571.03,0.00036712,18]
[424841877,1781196646000,-500.0,0.00036712,18]
[424841878,1781196646000,-564.99,0.00036712,18]
[424841879,1781196646000,-492.51,0.00036712,18]
[424841885,1781196646000,-321.02239167,0.00036712,18]
[424841886,1781196646000,-500.0,0.00036712,18]
[424841864,1781196646000,-1009.65,0.00036712,18]
[424841872,1781196646000,-411.74353118,0.00036712,18]
[424841863,1781196646000,-500.0,0.00036712,18]
[424841896,1781196646000,-500.0,0.00036712,18]
[424841857,1781196646000,-313.29,0.00036712,18]
[424841887,1781196646000,-1408.41,0.00036712,18]
[424841823,1781196646000,-500.0,0.00036438,18]
[424841828,1781196646000,-500.0,0.00036438,18]
[424841824,1781196646000,-927.63,0.00036438,18]
[424841826,1781196646000,-500.0,0.00036438,2]
[424841831,1781196646000,-1069.77,0.00036438,11]
[424841830,1781196646000,-566.44,0.00036438,18]
[424841833,1781196646000,-500.0,0.00036438,18]
[424841832,1781196646000,-500.0,0.00036438,18]
[424841829,1781196646000,-500.0,0.00036438,18]
[424841838,1781196646000,-500.0,0.00036438,18]
[424841835,1781196646000,-688.11,0.00036438,18]
[424841837,1781196646000,-500.0,0.00036438,18]
[424841836,1781196646000,-500.0,0.00036438,2]
[424841839,1781196646000,-500.0,0.00036438,18]
[424841849,1781196646000,-151.0,0.00036707,41]
[424841840,1781196646000,-500.0,0.00036438,18]
[424841852,1781196646000,-500.0,0.00036712,18]
[424841841,1781196646000,-500.0,0.00036438,18]
[424841851,1781196646000,-500.0,0.00036712,5]
[424841845,1781196646000,-500.0,0.00036438,18]
[424841853,1781196646000,-500.0,0.00036712,18]
[424841850,1781196646000,-993.8015,0.00036712,18]
[424841847,1781196646000,-500.0,0.00036438,18]
[424841843,1781196646000,-846.03,0.00036438,18]
[424841848,1781196646000,-300.0,0.00036438,41]
[424841854,1781196646000,-725.25,0.00036712,18]
[424841856,1781196646000,-500.0,0.00036712,18]
[424841894,1781196646000,-500.0,0.00036712,18]
[424841902,1781196646000,-500.0,0.00036712,18]
[424841938,1781196646000,-643.26,0.00036712,18]
[424841921,1781196646000,-500.0,0.00036712,18]
[424841925,1781196646000,-730.94,0.00036712,18]
[424841922,1781196646000,-501.64980137,0.00036712,18]
[424841927,1781196646000,-1484.57,0.00036712,18]
[424841926,1781196646000,-500.0,0.00036712,18]
[424841932,1781196646000,-1429.13,0.00036712,18]
[424841928,1781196646000,-500.0,0.00036712,18]
[424841933,1781196646000,-500.0,0.00036712,18]
[424841930,1781196646000,-500.0,0.00036712,18]
[424841929,1781196646000,-1896.26,0.00036712,18]
[424841936,1781196646000,-500.0,0.00036712,18]
[424841888,1781196646000,-500.0,0.00036712,18]
[424841935,1781196646000,-2812.77,0.00036712,18]
[424841934,1781196646000,-500.0,0.00036712,18]
[424841931,1781196646000,-500.0,0.00036712,18]
[424841937,1781196646000,-1284.08,0.00036712,18]
[424841939,1781196646000,-500.0,0.00036712,18]
[424841941,1781196646000,-956.09,0.00036712,18]
[424841942,1781196646000,-500.0,0.00036712,18]
[424841943,1781196646000,-500.0,0.00036712,18]
[424841940,1781196646000,-500.0,0.00036712,18]
[424841947,1781196646000,-500.0,0.00036712,18]
[424841944,1781196646000,-1010.47,0.00036712,18]
[424841946,1781196646000,-818.52,0.00036712,18]
[424841948,1781196646000,-500.0,0.00036712,18]
[424841945,1781196646000,-500.0,0.00036712,18]
[424841949,1781196646000,-2560.91,0.00036712,18]
[424841924,1781196646000,-501.75023195,0.00036712,18]
[424841917,1781196646000,-765.28,0.00036712,18]
[424841923,1781196646000,-500.0,0.00036712,18]
[424841916,1781196646000,-689.14,0.00036712,18]
[424841895,1781196646000,-500.0,0.00036712,18]
[424841897,1781196646000,-500.0,0.00036712,18]
[424841893,1781196646000,-2435.79,0.00036712,18]
[424841890,1781196646000,-500.0,0.00036712,18]
[424841892,1781196646000,-551.22,0.00036712,18]
[424841891,1781196646000,-500.0,0.00036712,18]
[424841889,1781196646000,-402.43744417,0.00036712,18]
[424841898,1781196646000,-500.0,0.00036712,18]
[424841918,1781196646000,-969.19,0.00036712,18]
[424841900,1781196646000,-693.44,0.00036712,18]
[424841908,1781196646000,-1615.89,0.00036712,18]
[424841909,1781196646000,-500.0,0.00036712,18]
[424841907,1781196646000,-535.87,0.00036712,18]
[424841899,1781196646000,-640.99,0.00036712,18]
[424841910,1781196646000,-537.88563433,0.00036712,18]
[424841901,1781196646000,-500.0,0.00036712,18]
[424841919,1781196646000,-617.51183014,0.00036712,18]
[424841920,1781196646000,-1638.2,0.00036712,18]
[424841914,1781196646000,-500.0,0.00036712,18]
[424841912,1781196646000,-500.0,0.00036712,18]
[424841913,1781196646000,-1315.8,0.00036712,18]
[424841915,1781196646000,-744.07,0.00036712,18]
[424841906,1781196646000,-500.0,0.00036712,18]
[424841903,1781196646000,-378.12176368,0.00036712,18]
[424841904,1781196646000,-500.0,0.00036712,18]
[424841905,1781196646000,-500.0,0.00036712,18]
[424841911,1781196646000,-500.0,0.00036712,18]
[424841996,1781196647000,-500.0,0.00036712,18]
[424842002,1781196647000,-500.0,0.00036986,18]
[424841992,1781196647000,-253.88737173,0.00036712,18]
[424841990,1781196647000,-688.11,0.00036712,18]
[424841985,1781196647000,-549.52390684,0.00036712,18]
[424841989,1781196647000,-500.0,0.00036712,18]
[424841987,1781196647000,-566.44,0.00036712,18]
[424841978,1781196647000,-500.0,0.00036712,18]
[424841984,1781196647000,-500.0,0.00036712,18]
[424841983,1781196647000,-500.0,0.00036712,2]
[424841986,1781196647000,-1069.77,0.00036712,11]
[424841991,1781196647000,-500.0,0.00036712,2]
[424841988,1781196647000,-170.73492446,0.00036712,18]
[424841995,1781196647000,-500.0,0.00036712,18]
[424842007,1781196647000,-1326.85,0.00036986,18]
[424841993,1781196647000,-500.0,0.00036712,18]
[424841998,1781196647000,-500.0,0.00036712,18]
[424842000,1781196647000,-151.0,0.00036965,42]
[424841999,1781196647000,-500.0,0.00036712,18]
[424841997,1781196647000,-846.03,0.00036712,18]
[424842001,1781196647000,-151.0,0.00036985,30]
[424842004,1781196647000,-725.25,0.00036986,18]
[424842008,1781196647000,-500.0,0.00036986,18]
[424842003,1781196647000,-500.0,0.00036986,18]
[424842006,1781196647000,-500.0,0.00036986,18]
[424842014,1781196647000,-500.0,0.00036986,18]
[424842009,1781196647000,-500.0,0.00036986,18]
[424842010,1781196647000,-1009.65,0.00036986,18]
[424841981,1781196647000,-500.0,0.00036712,18]
[424841994,1781196647000,-500.0,0.00036712,18]
[424841982,1781196647000,-927.63,0.00036712,18]
[424842011,1781196647000,-500.0,0.00036986,18]
[424841979,1781196647000,-500.0,0.00036712,18]
[424842005,1781196647000,-500.0,0.00036986,18]
[424841951,1781196647000,-500.0,0.00036712,18]
[424841950,1781196647000,-609.4,0.00036712,6]
[424841952,1781196647000,-500.0,0.00036712,18]
[424841960,1781196647000,-1365.01,0.00036712,18]
[424841962,1781196647000,-238.74117784,0.00036712,18]
[424841957,1781196647000,-500.0,0.00036712,18]
[424841954,1781196647000,-500.0,0.00036712,18]
[424841963,1781196647000,-500.0,0.00036712,18]
[424841956,1781196647000,-500.0,0.00036712,18]
[424841953,1781196647000,-1041.52,0.00036712,18]
[424841959,1781196647000,-26270.38,0.00036712,18]
[424841961,1781196647000,-500.0,0.00036712,18]
[424841964,1781196647000,-1501.96,0.00036712,18]
[424841955,1781196647000,-500.0,0.00036712,18]
[424841958,1781196647000,-500.0,0.00036712,18]
[424841972,1781196647000,-2684.78,0.00036712,18]
[424841971,1781196647000,-3481.0,0.00036712,18]
[424841974,1781196647000,-1587.13,0.00036712,18]
[424841975,1781196647000,-1830.86,0.00036712,18]
[424841973,1781196647000,-524.08,0.00036712,18]
[424841976,1781196647000,-1029.31,0.00036712,18]
[424841965,1781196647000,-500.0,0.00036712,18]
[424841966,1781196647000,-2069.61,0.00036712,18]
[424841967,1781196647000,-1904.62,0.00036712,18]
[424841970,1781196647000,-316.93787969,0.00036712,18]
[424841968,1781196647000,-316.45121146,0.00036712,18]
[424841969,1781196647000,-689.91,0.00036712,18]
[424841977,1781196647000,-500.0,0.00036712,18]
[424841980,1781196647000,-500.0,0.00036712,18]
[424842013,1781196647000,-2043.54,0.00036986,2]
[424842021,1781196647000,-500.0,0.00036986,18]
[424842075,1781196647000,-500.0,0.00036986,18]
[424842050,1781196647000,-500.0,0.00036986,18]
[424842046,1781196647000,-500.0,0.00036986,18]
[424842051,1781196647000,-500.0,0.00036986,18]
[424842047,1781196647000,-535.87,0.00036986,18]
[424842052,1781196647000,-1315.8,0.00036986,18]
[424842049,1781196647000,-500.0,0.00036986,18]
[424842048,1781196647000,-1615.89,0.00036986,18]
[424842058,1781196647000,-1638.2,0.00036986,18]
[424842064,1781196647000,-500.0,0.00036986,18]
[424842057,1781196647000,-969.19,0.00036986,18]
[424842056,1781196647000,-765.28,0.00036986,18]
[424842059,1781196647000,-500.0,0.00036986,18]
[424842055,1781196647000,-689.14,0.00036986,18]
[424842067,1781196647000,-500.0,0.00036986,18]
[424842060,1781196647000,-335.53456969,0.00036986,18]
[424842063,1781196647000,-1484.57,0.00036986,18]
[424842066,1781196647000,-500.0,0.00036986,18]
[424842061,1781196647000,-178.02478659,0.00036986,18]
[424842062,1781196647000,-730.94,0.00036986,18]
[424842069,1781196647000,-500.0,0.00036986,18]
[424842070,1781196647000,-500.0,0.00036986,18]
[424842078,1781196647000,-956.09,0.00036986,18]
[424842071,1781196647000,-2812.77,0.00036986,18]
[424842074,1781196647000,-643.26,0.00036986,18]
[424842072,1781196647000,-483.19,0.00036986,18]
[424842076,1781196647000,-500.0,0.00036986,18]
[424842068,1781196647000,-1429.13,0.00036986,18]
[424842073,1781196647000,-1284.08,0.00036986,18]
[424842012,1781196647000,-500.0,0.00036986,18]
[424842042,1781196647000,-500.0,0.00036986,18]
[424842045,1781196647000,-500.0,0.00036986,18]
[424842065,1781196647000,-1896.26,0.00036986,18]
[424842054,1781196647000,-744.07,0.00036986,18]
[424842044,1781196647000,-497.60257561,0.00036986,18]
[424842016,1781196647000,-662.41,0.00036986,18]
[424842026,1781196647000,-500.0,0.00036986,18]
[424842015,1781196647000,-500.0,0.00036986,18]
[424842018,1781196647000,-198.21444209,0.00036986,18]
[424842028,1781196647000,-500.0,0.00036986,18]
[424842017,1781196647000,-500.0,0.00036986,18]
[424842022,1781196647000,-564.99,0.00036986,18]
[424842023,1781196647000,-500.0,0.00036986,18]
[424842027,1781196647000,-1385.18,0.00036986,18]
[424842025,1781196647000,-788.76,0.00036986,18]
[424842077,1781196647000,-500.0,0.00036986,18]
[424842020,1781196647000,-571.03,0.00036986,18]
[424842024,1781196647000,-500.0,0.00036986,18]
[424842031,1781196647000,-287.84505662,0.00036986,18]
[424842019,1781196647000,-500.0,0.00036986,18]
[424842035,1781196647000,-500.0,0.00036986,18]
[424842029,1781196647000,-1408.41,0.00036986,18]
[424842053,1781196647000,-500.0,0.00036986,18]
[424842038,1781196647000,-500.0,0.00036986,18]
[424842032,1781196647000,-500.0,0.00036986,18]
[424842039,1781196647000,-500.0,0.00036986,18]
[424842034,1781196647000,-2435.79,0.00036986,18]
[424842043,1781196647000,-500.0,0.00036986,18]
[424842033,1781196647000,-551.22,0.00036986,18]
[424842040,1781196647000,-640.99,0.00036986,18]
[424842041,1781196647000,-693.44,0.00036986,18]
[424842037,1781196647000,-500.0,0.00036986,18]
[424842036,1781196647000,-162.81570421,0.00036986,18]
[424842030,1781196647000,-320.80406617,0.00036986,18]
[424842133,1781196648000,-579.80517617,0.0003726,18]
[424842132,1781196648000,-310.0,0.00037151,50]
[424842122,1781196648000,-500.0,0.00036986,18]
[424842120,1781196648000,-688.11,0.00036986,18]
[424842119,1781196648000,-500.0,0.00036986,18]
[424842116,1781196648000,-292.49350005,0.00036986,2]
[424842108,1781196648000,-1830.86,0.00036986,18]
[424842115,1781196648000,-927.63,0.00036986,18]
[424842113,1781196648000,-500.0,0.00036986,18]
[424842107,1781196648000,-524.08,0.00036986,18]
[424842112,1781196648000,-500.0,0.00036986,18]
[424842118,1781196648000,-1069.77,0.00036986,11]
[424842123,1781196648000,-500.0,0.00036986,18]
[424842143,1781196648000,-500.0,0.0003726,18]
[424842124,1781196648000,-500.0,0.00036986,18]
[424842121,1781196648000,-500.0,0.00036986,2]
[424842125,1781196648000,-500.0,0.00036986,18]
[424842126,1781196648000,-846.03,0.00036986,18]
[424842131,1781196648000,-151.0,0.00037013,43]
[424842129,1781196648000,-151.0,0.00036999,30]
[424842130,1781196648000,-151.0,0.00037012,43]
[424842128,1781196648000,-500.0,0.00036986,18]
[424842134,1781196648000,-500.0,0.0003726,18]
[424842137,1781196648000,-289.57205823,0.0003726,18]
[424842136,1781196648000,-500.0,0.0003726,18]
[424842141,1781196648000,-1009.65,0.0003726,18]
[424842144,1781196648000,-2043.54,0.0003726,2]
[424842114,1781196648000,-500.0,0.00036986,18]
[424842127,1781196648000,-500.0,0.00036986,18]
[424842111,1781196648000,-500.0,0.00036986,18]
[424842156,1781196648000,-500.0,0.0003726,18]
[424842117,1781196648000,-566.44,0.00036986,18]
[424842135,1781196648000,-725.25,0.0003726,18]
[424842080,1781196648000,-1010.47,0.00036986,18]
[424842079,1781196648000,-500.0,0.00036986,18]
[424842081,1781196648000,-500.0,0.00036986,18]
[424842082,1781196648000,-818.52,0.00036986,18]
[424842085,1781196648000,-2560.91,0.00036986,18]
[424842086,1781196648000,-609.4,0.00036986,6]
[424842084,1781196648000,-500.0,0.00036986,18]
[424842087,1781196648000,-500.0,0.00036986,18]
[424842083,1781196648000,-500.0,0.00036986,18]
[424842091,1781196648000,-500.0,0.00036986,18]
[424842088,1781196648000,-500.0,0.00036986,18]
[424842093,1781196648000,-500.0,0.00036986,18]
[424842089,1781196648000,-1041.52,0.00036986,18]
[424842110,1781196648000,-500.0,0.00036986,18]
[424842092,1781196648000,-500.0,0.00036986,18]
[424842094,1781196648000,-306.25087296,0.00036986,18]
[424842096,1781196648000,-1365.01,0.00036986,18]
[424842106,1781196648000,-1587.13,0.00036986,18]
[424842095,1781196648000,-26270.38,0.00036986,18]
[424842105,1781196648000,-2684.78,0.00036986,18]
[424842097,1781196648000,-500.0,0.00036986,18]
[424842098,1781196648000,-500.0,0.00036986,18]
[424842099,1781196648000,-1501.96,0.00036986,18]
[424842100,1781196648000,-500.0,0.00036986,18]
[424842104,1781196648000,-3481.0,0.00036986,18]
[424842103,1781196648000,-689.91,0.00036986,18]
[424842101,1781196648000,-2069.61,0.00036986,18]
[424842102,1781196648000,-1904.62,0.00036986,18]
[424842109,1781196648000,-1029.31,0.00036986,18]
[424842090,1781196648000,-500.0,0.00036986,18]
[424842139,1781196648000,-500.0,0.0003726,18]
[424842165,1781196648000,-500.0,0.0003726,18]
[424842145,1781196648000,-500.0,0.0003726,18]
[424842186,1781196648000,-730.94,0.0003726,18]
[424842179,1781196648000,-500.0,0.0003726,18]
[424842147,1781196648000,-662.41,0.0003726,18]
[424842181,1781196648000,-689.14,0.0003726,18]
[424842178,1781196648000,-1315.8,0.0003726,18]
[424842182,1781196648000,-765.28,0.0003726,18]
[424842185,1781196648000,-500.0,0.0003726,18]
[424842184,1781196648000,-1638.2,0.0003726,18]
[424842183,1781196648000,-969.19,0.0003726,18]